bitfinex/quotes_SOLUSD_20240713
["timestamp","ask_amount","ask_price","bid_price","bid_amount"]
[1720867671738,1.03258394,139.77,139.72,1.43116616]
[1720867671938,1.03258394,139.77,139.7,1.43116578]
[1720867672147,1.03258394,139.77,139.71,1.43106334]
[1720867673826,1.03258394,139.76,139.7,1.43103988]
[1720867674033,1.03258394,139.76,139.68,0.8760522]
[1720867674629,7.67678394,139.77,139.68,0.8760522]
[1720867674934,7.67678394,139.77,139.69,0.77387109]
[1720867675540,7.67678394,139.77,139.69,45.77387109]
[1720867675843,1.03258394,139.76,139.69,45.77387109]
[1720867676041,6.6442,139.77,139.69,45.77387109]
[1720867676222,7.67678394,139.77,139.69,45.77387109]
[1720867676825,7.67678394,139.77,139.7,1.43115218]
[1720867677024,1.03258394,139.77,139.7,1.43115218]
[1720867677237,1.03258394,139.77,139.69,45.0]
[1720867678442,1.03258394,139.77,139.7,1.42963929]
[1720867680762,1.03258394,139.77,139.69,45.0]
[1720867682538,15.5469,139.78,139.69,45.0]
[1720867683735,15.5469,139.78,139.7,16.5654]
[1720867683939,15.5469,139.78,139.71,45.0]
[1720867684449,15.5469,139.78,139.72,1.4297427]
[1720867684632,15.5469,139.81,139.72,1.4297427]
[1720867685258,15.5469,139.81,139.72,21.4297427]
[1720867685465,15.5469,139.81,139.73,45.0]
[1720867685666,15.5469,139.81,139.74,1.43066178]
[1720867686939,7.41592335,139.86,139.76,16.5654]
[1720867687253,7.41592335,139.86,139.77,45.0]
[1720867687637,7.41592335,139.86,139.78,1.00586073]
[1720867687837,7.41592335,139.86,139.77,45.0]
[1720867688247,7.41592335,139.86,139.78,1.43011409]
[1720867688764,1.03258394,139.85,139.77,45.0]
[1720867689063,1.03258394,139.85,139.78,1.43021744]
[1720867689362,1.03258394,139.85,139.76,1.43021744]
[1720867689565,1.03258394,139.85,139.77,1.43011511]
[1720867690672,1.03258394,139.85,139.76,1.43011511]
[1720867690878,1.03258394,139.85,139.77,1.43053382]
[1720867691969,1.03258394,139.85,139.76,1.4304257]
[1720867692170,1.03258394,139.85,139.77,1.43044074]
[1720867693067,1.03258394,139.85,139.75,6.2793]
[1720867693277,1.03258394,139.85,139.74,8.84897541]
[1720867693470,1.03258394,139.85,139.75,45.0]
[1720867693666,1.03258394,139.85,139.76,1.43052664]
[1720867694180,11.03258394,139.85,139.76,1.43052664]
[1720867694652,11.03258394,139.85,139.75,1.43055607]
[1720867695450,11.03258394,139.85,139.75,21.43055607]
[1720867696066,11.03258394,139.85,139.75,1.43055607]
[1720867696378,42.5406,139.84,139.75,1.43055607]
[1720867696554,1.03258394,139.83,139.75,1.43055607]
[1720867696753,1.03258394,139.82,139.76,1.4304537]
[1720867697150,10.0,139.81,139.73,1.43045397]
[1720867697356,81.95878394,139.8,139.72,1.43109997]
[1720867697578,1.03258394,139.79,139.69,1.43115357]
[1720867698987,11.03258394,139.79,139.69,1.43115357]
[1720867699272,6.6144,139.78,139.69,1.43115357]
[1720867699450,21.03258394,139.77,139.69,1.43115357]
[1720867699647,1.03258394,139.76,139.69,1.43115357]
[1720867700385,15.9262,139.75,139.68,0.8760522]
[1720867700553,1.03258394,139.74,139.68,0.8760522]
[1720867700749,1.03258394,139.73,139.68,0.8760522]
[1720867701882,1.03258394,139.74,139.68,0.8760522]
[1720867702056,1.03258394,139.73,139.68,0.8760522]
[1720867703070,16.95878394,139.75,139.68,0.8760522]
[1720867703271,15.9262,139.75,139.68,0.8760522]
[1720867703984,15.9262,139.75,139.69,1.43121688]
[1720867704356,1.03258394,139.74,139.68,0.8760522]
[1720867704560,6.6144,139.73,139.68,0.8760522]
[1720867704768,1.03258394,139.74,139.68,0.8760522]
[1720867704966,1.03258394,139.74,139.69,1.43102406]
[1720867706085,1.03258394,139.74,139.7,1.43139848]
[1720867706273,16.95878394,139.75,139.68,0.8760522]
[1720867707075,15.9262,139.75,139.69,1.43133849]
[1720867707286,16.95878394,139.75,139.68,0.8760522]
[1720867707879,16.95878394,139.75,139.69,1.42894551]
[1720867708690,16.95878394,139.75,139.68,0.8760522]
[1720867709683,21.6517,139.74,139.68,0.8760522]
[1720867709892,6.309,139.71,139.62,7.36438975]
[1720867710080,15.3427,139.69,139.58,255.3]
[1720867710387,1.03258394,139.68,139.58,255.3]
[1720867710583,1.03258394,139.68,139.56,51.06666752]
[1720867711298,1.03258394,139.68,139.56,29.57666752]
[1720867712097,1.03258394,139.68,139.57,20.0]
[1720867712395,1.03258394,139.67,139.56,29.57666752]
[1720867712610,1.03258394,139.67,139.57,0.46780616]
[1720867713199,25.3427,139.69,139.57,0.46780616]
[1720867713370,1.03258394,139.68,139.57,0.46780616]
[1720867713569,1.03258394,139.67,139.57,0.46780616]
[1720867713767,1.03258394,139.67,139.56,29.57666752]
[1720867713999,16.37528394,139.69,139.57,42.6230642]
[1720867714179,16.37528394,139.69,139.58,1.13298367]
[1720867714802,15.3427,139.69,139.58,66.49]
[1720867715018,15.3427,139.69,139.59,21.07024038]
[1720867715300,15.3427,139.69,139.6,45.0]
[1720867715475,15.3427,139.69,139.61,1.43191963]
[1720867721705,15.3427,139.72,139.61,50.18158715]
[1720867721897,15.3427,139.72,139.62,72.7055]
[1720867722097,15.3427,139.72,139.63,59.02290135]
[1720867722285,6.309,139.74,139.64,73.74966752]
[1720867722487,6.309,139.74,139.65,21.43118064]
[1720867722688,6.309,139.74,139.66,45.0]
[1720867722896,16.37528394,139.73,139.67,1.43118246]
[1720867723080,16.37528394,139.73,139.68,1.43151766]
[1720867723280,16.37528394,139.73,139.66,1.43159077]
[1720867723803,16.37528394,139.73,139.61,7.25966752]
[1720867723804,16.37528394,139.73,139.62,21.43158696]
[1720867723986,16.37528394,139.73,139.62,28.69125448]
[1720867724885,16.37528394,139.73,139.63,45.0]
[1720867725086,16.37528394,139.73,139.64,20.0]
[1720867725286,16.37528394,139.73,139.65,45.0]
[1720867731011,16.37528394,139.73,139.64,20.0]
[1720867731198,16.37528394,139.73,139.63,20.0]
[1720867731403,16.37528394,139.73,139.64,45.0]
[1720867733096,16.37528394,139.73,139.65,20.0]
[1720867734105,16.37528394,139.73,139.66,1.43148475]
[1720867736002,16.37528394,139.73,139.65,20.0]
[1720867738525,15.3427,139.73,139.66,46.42714695]
[1720867739392,15.3427,139.73,139.67,20.0]
[1720867739590,15.3427,139.73,139.68,46.43121183]
[1720867739989,21.9894,139.77,139.69,20.0]
[1720867740226,21.9894,139.77,139.7,46.43088701]
[1720867740518,15.5705,139.77,139.71,1.4308871]
[1720867741193,15.5705,139.77,139.71,21.4308871]
[1720867741415,15.5705,139.77,139.72,45.0]
[1720867742015,15.5705,139.77,139.71,20.0]
[1720867742218,15.5705,139.77,139.69,20.0]
[1720867742428,15.5705,139.77,139.7,45.0]
[1720867743529,15.5705,139.77,139.71,1.43097222]
[1720867744410,21.9894,139.8,139.7,66.49]
[1720867744717,15.5705,139.8,139.72,1.43083145]
[1720867744921,15.5705,139.8,139.72,46.43083145]
[1720867745120,15.5705,139.8,139.73,20.0]
[1720867745300,15.5705,139.8,139.74,46.43058013]
[1720867746325,15.5705,139.8,139.74,45.0]
[1720867747325,15.5705,139.8,139.75,1.43059723]
[1720867747904,15.5705,139.8,139.72,1.43059755]
[1720867748204,15.5705,139.8,139.72,46.43059755]
[1720867748423,15.5705,139.8,139.73,20.0]
[1720867748631,15.5705,139.8,139.74,1.43039284]
[1720867749316,15.5705,139.8,139.74,46.43039284]
[1720867751233,6.4189,139.83,139.74,66.49]
[1720867751537,15.9439,139.84,139.75,21.43022402]
[1720867751748,7.41753813,139.86,139.77,37.2233]
[1720867752038,16.97648394,139.89,139.78,66.42994401]
[1720867752422,16.97648394,139.89,139.78,86.49]
[1720867752742,15.9439,139.89,139.79,1.42980478]
[1720867752918,15.9439,139.89,139.78,86.49]
[1720867754818,15.9439,139.89,139.79,1.42968636]
[1720867755006,23.36428394,139.93,139.8,6.2285]
[1720867755223,1.03258394,139.92,139.81,66.42966003]
[1720867755623,1.03258394,139.92,139.81,87.91966003]
[1720867755812,1.03258394,139.92,139.81,66.42966003]
[1720867756427,1.03258394,139.92,139.81,65.0]
[1720867756913,22.3317,139.93,139.81,86.49]
[1720867757821,22.3317,139.93,139.82,1.42944715]
[1720867758718,22.3317,139.93,139.81,86.49]
[1720867758919,1.03258394,139.92,139.81,86.49]
[1720867759648,22.3317,139.93,139.81,86.49]
[1720867760321,1.03258394,139.92,139.81,86.49]
[1720867760815,1.03258394,139.92,139.81,65.0]
[1720867761615,1.03258394,139.92,139.82,1.29963643]
[1720867761821,1.03258394,139.92,139.8,1.30060457]
[1720867761822,66.03258394,139.92,139.8,1.30060457]
[1720867762214,21.03258394,139.92,139.77,43.4518]
[1720867762432,1.03258394,139.92,139.79,21.49]
[1720867762632,1.03258394,139.92,139.79,30.38577541]
[1720867763115,1.03258394,139.92,139.8,66.49]
[1720867763316,1.03258394,139.92,139.81,20.0]
[1720867763620,1.03258394,139.92,139.82,46.42964533]
[1720867763821,1.03258394,139.92,139.83,20.0]
[1720867764039,22.3317,139.93,139.84,46.42944086]
[1720867765034,15.9439,139.93,139.84,68.39124086]
[1720867765434,15.9439,139.93,139.85,20.0]
[1720867765633,15.9439,139.93,139.86,46.42923644]
[1720867770046,1.03258394,139.95,139.86,46.42923644]
[1720867770541,1.03258394,139.95,139.87,20.0]
[1720867770856,1.03258394,139.95,139.88,46.42903208]
[1720867771645,17.36088394,139.96,139.88,46.42903208]
[1720867772141,16.3283,139.96,139.88,46.42903208]
[1720867772443,1.03258394,139.98,139.88,46.42903208]
[1720867772755,1.03258394,139.98,139.89,20.0]
[1720867773053,1.03258394,139.98,139.9,46.42908924]
[1720867773243,1.03258394,139.98,139.9,45.0]
[1720867773751,1.03258394,139.98,139.91,1.42897444]
[1720867774256,1.03258394,139.98,139.91,1.42912091]
[1720867774741,1.03258394,139.98,139.9,45.0]
[1720867776641,1.03258394,139.98,139.91,1.42905257]
[1720867777261,1.03258394,140.03,139.92,23.61578369]
[1720867777558,1.03258394,140.03,139.93,45.0]
[1720867777726,8.44500976,140.03,139.94,1.42870621]
[1720867778322,8.44500976,140.03,139.95,1.2663916]
[1720867778544,8.44500976,140.03,139.93,45.0]
[1720867778545,1.03258394,140.03,139.93,45.0]
[1720867778753,21.03258394,140.03,139.94,1.26648222]
[1720867778936,1.03258394,140.03,139.94,1.26648222]
[1720867782129,258.5760522,140.04,139.94,21.26648222]
[1720867782348,1.03258394,140.03,139.95,45.0]
[1720867783329,0.8760522,140.04,139.96,22.1867]
[1720867783529,1.90863614,140.04,139.97,45.0]
[1720867783753,0.8760522,140.04,139.97,45.0]
[1720867783957,1.90863614,140.04,139.97,45.0]
[1720867784846,0.8760522,140.04,139.97,45.0]
[1720867785838,0.8760522,140.04,139.98,1.42819883]
[1720867786040,0.8760522,140.04,139.99,1.4280968]
[1720867787844,0.8760522,140.04,139.99,46.4280968]
[1720867790967,0.8760522,140.04,139.99,45.0]
[1720867791151,0.8760522,140.04,140.0,1.42811042]
[1720867792061,0.8760522,140.04,139.87,20.0]
[1720867792062,0.8760522,140.04,140.01,23.01260861]
[1720867795365,0.8760522,140.04,140.02,45.0]
[1720867795575,0.8760522,140.04,140.03,1.42789184]
[1720867796654,0.8760522,140.04,140.02,46.42789185]
[1720867796973,0.8760522,140.04,140.02,45.0]
[1720867797148,0.8760522,140.04,140.01,21.5846]
[1720867797564,0.8760522,140.04,140.02,45.0]
[1720867797868,0.8760522,140.04,140.03,1.42654582]
[1720867799467,0.8760522,140.04,140.03,20.0]
[1720867799656,0.8760522,140.04,140.03,65.0]
[1720867801073,0.8760522,140.04,140.03,1.42683398]
[1720867801256,0.8760522,140.04,140.01,21.5846]
[1720867802760,0.8760522,140.04,140.01,6.0197]
[1720867804066,0.8760522,140.04,140.02,65.0]
[1720867804789,0.8760522,140.04,140.03,0.85227215]
[1720867804990,0.8760522,140.04,140.03,1.42791739]
[1720867806786,0.8760522,140.04,140.02,65.0]
[1720867806956,0.8760522,140.04,140.03,0.85163447]
[1720867807162,0.8760522,140.04,140.02,65.0]
[1720867809896,0.8760522,140.04,140.01,6.0197]
[1720867810094,0.8760522,140.04,139.98,22.223]
[1720867810298,0.8760522,140.04,139.99,45.0]
[1720867810591,0.8760522,140.04,140.0,1.42809755]
[1720867812074,0.8760522,140.04,140.0,46.42809755]
[1720867815492,0.8760522,140.04,140.01,20.0]
[1720867815698,0.8760522,140.04,140.02,46.42780033]
[1720867817180,0.8760522,140.04,140.02,45.0]
[1720867821395,0.8760522,140.04,140.01,45.0]
[1720867821703,0.8760522,140.04,140.03,0.87387036]
[1720867821997,0.8760522,140.04,140.01,45.0]
[1720867823297,0.8760522,140.04,140.02,0.57399586]
[1720867823593,0.8760522,140.04,140.01,45.0]
[1720867826485,0.8760522,140.04,140.02,20.0]
[1720867826690,0.8760522,140.04,140.03,45.0]
[1720867826997,0.8760522,140.04,140.03,65.9577739]
[1720867827212,0.8760522,140.04,140.03,88.3278631]
[1720867827580,0.8760522,140.04,140.03,95.58753062]
[1720867827979,15.4656,140.14,140.03,117.07753062]
[1720867828176,15.4656,140.14,140.04,27.25966752]
[1720867828376,22.5934522,140.18,140.05,45.0]
[1720867828602,22.5934522,140.18,140.06,27.25966752]
[1720867828903,22.5934522,140.18,140.07,67.5957]
[1720867829083,22.5934522,140.18,140.07,74.85536752]
[1720867829282,22.5934522,140.18,140.08,20.0]
[1720867829477,22.5934522,140.18,140.09,45.0]
[1720867830097,1.03258394,140.17,140.1,1.42701783]
[1720867830294,16.4816522,140.18,140.1,21.42701783]
[1720867830478,1.03258394,140.17,140.11,45.0]
[1720867830682,1.03258394,140.17,140.1,20.0]
[1720867830905,1.03258394,140.17,140.08,20.0]
[1720867831083,1.03258394,140.17,140.09,45.0]
[1720867831285,1.03258394,140.17,140.1,21.42708377]
[1720867831800,6.1118,140.16,140.07,7.25966752]
[1720867832006,1.03258394,140.15,140.03,46.6531062]
[1720867832305,1.03258394,140.15,140.04,50.17435624]
[1720867832697,1.03258394,140.15,140.04,48.74966752]
[1720867833102,1.03258394,140.15,140.05,45.0]
[1720867833311,1.03258394,140.15,140.06,20.0]
[1720867833609,1.03258394,140.15,140.07,45.0]
[1720867833813,1.03258394,140.15,140.08,1.42716872]
[1720867833999,7.14438394,140.16,140.08,1.42716872]
[1720867834398,7.14438394,140.16,140.08,21.42716872]
[1720867834591,7.14438394,140.16,140.09,45.0]
[1720867834784,7.14438394,140.16,140.1,1.426965]
[1720867834984,1.03258394,140.15,140.09,45.0]
[1720867836116,6.1118,140.16,140.09,45.0]
[1720867836315,16.4816522,140.18,140.09,45.0]
[1720867836485,1.03258394,140.17,140.1,1.42685186]
[1720867836689,1.03258394,140.17,140.09,45.0]
[1720867836892,1.03258394,140.17,140.1,1.42698846]
[1720867837306,17.51423614,140.18,140.1,1.42698846]
[1720867838218,16.4816522,140.18,140.1,1.42698846]
[1720867838993,16.4816522,140.18,140.1,21.42698846]
[1720867839195,16.4816522,140.18,140.11,45.0]
[1720867839394,16.4816522,140.18,140.12,1.42686242]
[1720867841113,16.4816522,140.18,140.12,21.42686242]
[1720867841324,16.4816522,140.18,140.13,45.0]
[1720867841513,0.8760522,140.18,140.14,1.42671534]
[1720867841715,0.8760522,140.18,140.15,1.42665649]
[1720867844396,0.8760522,140.18,140.15,46.42665649]
[1720867846525,0.8760522,140.18,140.15,74.39175649]
[1720867846738,0.8760522,140.18,140.16,20.0]
[1720867847024,0.8760522,140.18,140.17,46.42622634]
[1720867847804,0.8760522,140.18,140.17,66.42622634]
[1720867850523,0.8760522,140.18,140.17,65.0]
[1720867850708,0.8760522,140.18,140.17,66.42614981]
[1720867851844,0.8760522,140.18,140.17,87.91614981]
[1720867852131,0.8760522,140.18,140.17,86.49]
[1720867852329,0.8760522,140.18,140.17,65.0]
[1720867852699,0.8760522,140.18,140.17,21.42620052]
[1720867852928,0.8760522,140.18,140.17,1.42620052]
[1720867853613,0.8760522,140.18,140.12,15.1639]
[1720867853809,0.8760522,140.18,140.13,1.42661369]
[1720867855113,0.8760522,140.18,140.13,21.42661369]
[1720867855925,0.8760522,140.18,140.13,1.42661369]
[1720867856234,0.8760522,140.18,140.09,23.17434536]
[1720867856606,0.8760522,140.18,140.1,1.42679333]
[1720867856810,0.8760522,140.18,140.08,13.83046752]
[1720867857047,15.6391,140.17,140.09,1.42693643]
[1720867857220,16.67168394,140.17,140.06,15.1639]
[1720867857421,6.3864,140.16,140.06,15.1639]
[1720867857619,1.03258394,140.15,140.06,15.1639]
[1720867858538,1.03258394,140.15,140.07,65.0]
[1720867859217,1.03258394,140.15,140.07,20.0]
[1720867859418,1.03258394,140.15,140.08,1.42725408]
[1720867859929,6.3864,140.16,140.07,21.46]
[1720867860135,6.3864,140.16,140.08,20.0]
[1720867860436,6.3864,140.16,140.09,0.94410827]
[1720867861138,7.41898394,140.16,140.07,1.42700506]
[1720867861323,7.41898394,140.16,140.07,46.42700506]
[1720867861527,6.3864,140.16,140.08,21.42690318]
[1720867861716,6.3864,140.16,140.09,45.0]
[1720867861923,15.6391,140.17,140.1,1.42669948]
[1720867862150,15.6391,140.17,140.11,1.42659765]
[1720867862349,15.6391,140.17,140.11,46.42659765]
[1720867863551,15.6391,140.17,140.11,45.0]
[1720867863730,15.6391,140.17,140.12,1.4269266]
[1720867864053,1.03258394,140.16,140.08,20.0]
[1720867864230,1.03258394,140.16,140.08,1.42711875]
[1720867864430,1.03258394,140.16,140.06,20.0]
[1720867865442,1.03258394,140.16,140.07,45.0]
[1720867865648,1.03258394,140.16,140.08,20.0]
[1720867865830,1.03258394,140.16,140.09,45.0]
[1720867866025,1.03258394,140.16,140.1,20.0]
[1720867868259,16.67168394,140.17,140.1,20.0]
[1720867868551,15.6391,140.17,140.11,45.0]
[1720867869546,15.6391,140.17,140.12,1.4269579]
[1720867871036,0.8760522,140.18,140.12,1.4269579]
[1720867872356,0.8760522,140.18,140.11,45.0]
[1720867872545,0.8760522,140.18,140.12,1.42661212]
[1720867872936,0.8760522,140.18,140.11,45.0]
[1720867874769,0.8760522,140.18,140.11,66.46]
[1720867874939,0.8760522,140.18,140.12,20.0]
[1720867875147,0.8760522,140.18,140.13,45.0]
[1720867875346,0.8760522,140.18,140.14,20.0]
[1720867875649,0.8760522,140.18,140.15,46.4261683]
[1720867879046,0.8760522,140.18,140.16,1.42658445]
[1720867879256,0.8760522,140.18,140.14,20.0]
[1720867879257,0.8760522,140.18,140.11,20.0]
[1720867879456,0.8760522,140.18,140.12,45.0]
[1720867879760,0.8760522,140.18,140.11,45.0]
[1720867881280,0.8760522,140.18,140.12,20.0]
[1720867881445,0.8760522,140.18,140.13,45.0]
[1720867882363,0.8760522,140.18,140.14,1.42678193]
[1720867884876,0.8760522,140.18,140.13,1.42688357]
[1720867886170,0.8760522,140.18,140.14,1.42678214]
[1720867886473,0.8760522,140.18,140.11,1.42678215]
[1720867886676,0.8760522,140.18,140.11,46.42678215]
[1720867886873,0.8760522,140.18,140.12,20.0]
[1720867887077,0.8760522,140.18,140.13,46.42678443]
[1720867888461,0.8760522,140.18,140.14,20.0]
[1720867888661,0.8760522,140.18,140.15,46.4265756]
[1720867889779,0.8760522,140.18,140.15,1.4265756]
[1720867889972,0.8760522,140.18,140.11,21.46]
[1720867890171,0.8760522,140.18,140.12,21.42521573]
[1720867890480,0.8760522,140.18,140.12,1.42521573]
[1720867890867,0.8760522,140.18,140.09,7.25966752]
[1720867891179,0.8760522,140.18,140.07,35.20706752]
[1720867891960,0.8760522,140.18,140.08,66.46]
[1720867892465,0.8760522,140.18,140.09,20.0]
[1720867892780,6.5701,140.17,140.1,45.0]
[1720867892965,7.60268394,140.17,140.07,13.74706752]
[1720867894263,7.60268394,140.17,140.08,65.0]
[1720867895064,16.5733,140.16,140.08,20.0]
[1720867895280,1.03258394,140.15,140.08,20.0]
[1720867895485,1.03258394,140.15,140.03,43.5814]
[1720867895793,1.03258394,140.15,140.04,41.46]
[1720867897196,1.03258394,140.15,140.05,1.4272842]
[1720867897692,16.5733,140.16,140.05,1.4272842]
[1720867897985,17.60588394,140.16,140.06,21.46]
[1720867898188,17.60588394,140.16,140.05,8.68695172]
[1720867898189,17.60588394,140.16,140.07,66.42712101]
[1720867898388,17.60588394,140.16,140.07,21.42712101]
[1720867898690,17.60588394,140.16,140.08,45.0]
[1720867898892,16.5733,140.16,140.09,1.42715546]
[1720867899388,16.5733,140.16,140.09,21.42715546]
[1720867899567,16.5733,140.16,140.1,45.0]
[1720867899767,0.8760522,140.18,140.11,1.42682641]
[1720867902295,0.8760522,140.18,140.11,42.88682641]
[1720867902496,0.8760522,140.18,140.12,66.46]
[1720867902676,0.8760522,140.18,140.13,1.42656396]
[1720867902998,0.8760522,140.18,140.13,21.42656396]
[1720867903295,0.8760522,140.18,140.14,45.0]
[1720867903465,0.8760522,140.18,140.15,1.42636068]
[1720867905473,0.8760522,140.18,140.14,45.0]
[1720867906785,0.8760522,140.18,140.11,1.42667927]
[1720867907299,1.03258394,140.17,140.07,1.42691548]
[1720867907490,1.03258394,140.17,140.08,1.42703902]
[1720867907675,6.6179,140.16,140.06,14.28786745]
[1720867907875,1.03258394,140.15,140.06,6.2782]
[1720867908277,15.8504,140.14,140.05,44.56286752]
[1720867908889,15.8504,140.14,140.06,0.45343963]
[1720867909200,15.8504,140.14,140.06,45.0]
[1720867909599,15.8504,140.14,140.07,20.0]
[1720867909796,15.8504,140.14,140.08,45.0]
[1720867910592,15.8504,140.14,140.09,1.42724654]
[1720867910976,15.8504,140.14,140.08,45.0]
[1720867911393,15.8504,140.14,140.07,20.0]
[1720867911606,15.8504,140.14,140.06,20.0]
[1720867911788,1.03258394,140.13,140.06,20.0]
[1720867912176,16.88298394,140.14,140.06,20.0]
[1720867912790,16.88298394,140.14,140.07,45.0]
[1720867913199,15.8504,140.14,140.07,45.0]
[1720867913391,15.8504,140.14,140.08,1.42730398]
[1720867914494,15.8504,140.14,140.07,45.0]
[1720867915587,1.03258394,140.13,140.07,45.0]
[1720867915783,1.03258394,140.13,140.03,6.4416]
[1720867916099,15.8504,140.11,140.01,7.25966752]
[1720867916306,1.03258394,140.1,140.01,7.25966752]
[1720867916883,15.8504,140.11,140.01,28.71966752]
[1720867917488,15.8504,140.11,140.02,86.46]
[1720867918005,16.88298394,140.11,140.03,1.42750023]
[1720867918800,15.8504,140.11,140.03,1.42750023]
[1720867918998,16.88298394,140.11,140.03,1.42750023]
[1720867921213,15.8504,140.11,140.02,86.46]
[1720867921502,16.88298394,140.11,140.03,1.42754452]
[1720867921708,16.88298394,140.11,140.02,65.0]
[1720867922499,16.88298394,140.11,140.03,1.42759729]
[1720867923494,1.03258394,140.1,140.03,1.42759729]
[1720867925494,1.03258394,140.1,140.02,65.0]
[1720867926912,16.88298394,140.11,140.02,65.0]
[1720867927119,1.03258394,140.1,140.03,1.42771302]
[1720867928921,1.03258394,140.1,140.02,65.0]
[1720867929815,1.03258394,140.1,140.03,1.42771534]
[1720867930523,1.03258394,140.1,140.02,65.0]
[1720867933028,1.03258394,140.1,140.03,1.42783202]
[1720867933542,1.03258394,140.1,140.03,0.96775402]
[1720867933827,1.03258394,140.1,140.03,1.42792742]
[1720867939131,15.8504,140.11,140.03,1.42792742]
[1720867942933,16.88298394,140.11,140.03,1.42792742]
[1720867943730,1.03258394,140.1,140.03,1.42792742]
[1720867944306,16.88298394,140.11,140.03,1.42792742]
[1720867944733,15.8504,140.11,140.03,1.42792742]
[1720867945735,16.88298394,140.11,140.03,1.42792742]
[1720867948214,15.8504,140.11,140.03,1.42792742]
[1720867950314,1.03258394,140.1,140.01,7.25966752]
[1720867950509,1.03258394,140.1,140.02,1.25681211]
[1720867950736,1.03258394,140.1,140.0,1.42788379]
[1720867951115,1.03258394,140.1,140.0,22.88788379]
[1720867951545,1.03258394,140.1,140.01,45.0]
[1720867951846,1.03258394,140.1,140.02,21.42770223]
[1720867952008,1.03258394,140.1,140.03,45.0]
[1720867952207,1.03258394,140.1,140.04,1.42749833]
[1720867961542,15.8504,140.11,140.04,1.42749833]
[1720867961714,15.8504,140.11,140.04,21.42749833]
[1720867961917,15.8504,140.11,140.05,45.0]
[1720867962115,15.8504,140.11,140.06,1.42757199]
[1720867962822,15.8504,140.11,140.06,21.42757199]
[1720867963143,15.8504,140.11,140.07,45.0]
[1720867963329,15.8504,140.11,140.08,1.42737601]
[1720867963517,15.4245,140.15,140.08,21.42737601]
[1720867963722,15.4245,140.15,140.09,45.0]
[1720867964024,15.4245,140.15,140.1,1.42707139]
[1720867964233,15.4245,140.15,140.11,1.42705895]
[1720867965739,16.45708394,140.15,140.11,1.42705895]
[1720867966552,16.45708394,140.15,140.07,1.42720397]
[1720867966844,16.45708394,140.15,140.08,1.42720396]
[1720867967015,16.45708394,140.15,140.08,21.42720396]
[1720867967348,16.45708394,140.15,140.09,45.0]
[1720867967554,16.45708394,140.15,140.1,21.42724651]
[1720867967756,16.45708394,140.15,140.11,1.42724272]
[1720867970329,15.4245,140.15,140.11,1.42724272]
[1720867970537,15.4245,140.15,140.11,46.42724272]
[1720867970751,16.45708394,140.15,140.11,1.42724272]
[1720867970955,16.45708394,140.15,140.11,1.42728647]
[1720867971147,16.45708394,140.15,140.06,21.42728641]
[1720867971454,16.45708394,140.15,140.07,45.0]
[1720867971659,16.45708394,140.15,140.08,21.42719765]
[1720867971835,16.45708394,140.15,140.09,45.0]
[1720867972036,16.45708394,140.15,140.1,1.42720817]
[1720867972238,16.45708394,140.15,140.11,1.42720529]
[1720867973350,16.45708394,140.15,140.1,1.42720331]
[1720867973550,16.45708394,140.15,140.11,1.42720398]
[1720867973742,15.4245,140.15,140.11,1.42720398]
[1720867974530,15.4245,140.15,140.1,1.42714342]
[1720867974734,15.4245,140.15,140.11,1.42714342]
[1720867975743,15.4245,140.15,140.1,1.42714377]
[1720867975939,15.4245,140.15,140.11,1.42714393]
[1720867976340,16.45708394,140.15,140.11,1.42714393]
[1720867976947,16.45708394,140.15,140.12,1.42713995]
[1720867976948,15.4245,140.15,140.12,1.42713995]
[1720867977150,15.4245,140.15,140.1,1.42710125]
[1720867977461,15.4245,140.15,140.11,1.42699939]
[1720867977838,15.4245,140.15,140.08,20.0]
[1720867978151,15.4245,140.15,140.05,20.0]
[1720867978355,15.4245,140.15,140.06,1.42414072]
[1720867978662,15.4245,140.15,140.04,1.42749031]
[1720867978865,15.4245,140.15,140.05,1.42738877]
[1720867979862,15.4245,140.15,140.05,46.42738877]
[1720867980067,16.45708394,140.15,140.06,20.0]
[1720867980275,15.4245,140.15,140.07,46.4271984]
[1720867980569,16.45708394,140.15,140.08,1.42718891]
[1720867981643,15.4245,140.15,140.07,45.0]
[1720867981839,15.4245,140.15,140.08,1.42727685]
[1720867984258,15.4245,140.15,140.07,1.42753997]